[Event "New York Summer IM-C 2022"]
[Site "New York"]
[Date "2022.07.11"]
[Round "7.2"]
[White "Nakada, Akira"]
[Black "Hardaway, Brewington"]
[Result "1/2-1/2"]
[ECO "D32"]
[WhiteElo "2297"]
[BlackElo "2175"]
[Annotator "RC"]
[PlyCount "70"]
[EventDate "2022.07.08"]
[EventType "tourn"]
[EventCountry "USA"]
[SourceTitle "playchess.com"]
[Source "ChessBase"]
[SourceQuality "1"]
[TimeControl "5400+30"]

1. c4 {[%emt 0:00:02]} e6 {[%emt 0:00:07]} 2. Nc3 {[%emt 0:00:09]} d5 {[%emt 0:00:04]} 3. e3 {[%emt 0:00:16]} Nf6 {[%emt 0:00:16]} 4. Nf3 {[%emt 0:00:07]} c5 {[%emt 0:00:30]} 5. cxd5 {[%emt 0:00:24]} exd5 {[%emt 0:00:05]} 6. d4 {[%emt 0:00:06]} Nc6 {[%emt 0:00:11]} 7. Be2 {[%emt 0:00:43]} a6 {[%emt 0:01:04]} 8. O-O {[%emt 0:00:36]} cxd4 {[%emt 0:01:43]} 9. Nxd4 {[%emt 0:00:20]} Bd6 {[%emt 0:00:06]} 10. Nxc6 {[%emt 0:01:48]} bxc6 {[%emt 0:00:28]} 11. b3 {[%emt 0:00:18]} O-O {[%emt 0:00:28]} 12. Bb2 {[%emt 0:00:05]} Qc7 {[%emt 0:11:12]} 13. h3 {[%emt 0:02:24]} Bf5 {[%emt 0:02:24]} 14. Bd3 {[%emt 0:05:19]} Be6 {[%emt 0:10:22]} 15. Rc1 {[%emt 0:02:29]} h6 {[%emt 0:02:46]} 16. Bb1 {[%emt 0:03:18]} Rfe8 {[%emt 0:14:25]} 17. Qd3 {[%emt 0:08:25]} Be5 {[%emt 0:00:36]} 18. f4 {[%emt 0:05:36]} Bxc3 {[%emt 0:00:22]} 19. Qxc3 {[%emt 0:00:12]} Rac8 {[%emt 0:06:27]} 20. Rf3 {[%emt 0:21:28]} Red8 {[%emt 0:01:44]} 21. Qd3 {[%emt 0:09:12]} Ne4 {[%emt 0:04:33]} 22. f5 {[%emt 0:01:50]} Bd7 {[%emt 0:01:36]} 23. f6 {[%emt 0:01:01]} g6 {[%emt 0:00:17]} 24. Rf4 {[%emt 0:06:11]} Ng3 {[%emt 0:03:34]} 25. Qd1 {[%emt 0:03:04]} Re8 {[%emt 0:06:10]} 26. Qf3 {[%emt 0:02:32]} Rxe3 {[%emt 0:00:09]} 27. Qxe3 {[%emt 0:03:44]} Qxf4 {[%emt 0:01:17]} 28. Qxf4 {[%emt 0:08:56]} Ne2+ {[%emt 0:00:01]} 29. Kf2 {[%emt 0:00:03]} Nxf4 {[%emt 0:00:07]} 30. Be5 {[%emt 0:01:58]} Ne6 {[%emt 0:00:10]} 31. Bd3 {[%emt 0:00:08]} c5 {[%emt 0:02:39]} 32. Bd6 {[%emt 0:01:58]} Bb5 {[%emt 0:00:56]} 33. Bb1 {[%emt 0:01:58]} a5 {[%emt 0:02:14]} 34. h4 {[%emt 0:00:55]} Rc6 {[%emt 0:07:41]} 35. Be7 {[%emt 0:10:25]} c4 1/2-1/2

[Event "New York Summer IM-C 2022"]
[Site "New York"]
[Date "2022.07.11"]
[Round "7.3"]
[White "Martin Del Campo Cardenas, Roberto Abel"]
[Black "Le, Nguyen Khoi Nguyen"]
[Result "1-0"]
[ECO "B99"]
[WhiteElo "2245"]
[BlackElo "2001"]
[Annotator "RC"]
[PlyCount "47"]
[EventDate "2022.07.08"]
[EventType "tourn"]
[EventCountry "USA"]
[SourceTitle "playchess.com"]
[Source "ChessBase"]
[SourceQuality "1"]
[TimeControl "5400+30"]

1. e4 {[%emt 0:00:02]} c5 {[%emt 0:02:57]} 2. Nf3 {[%emt 0:01:01]} d6 {[%emt 0:00:03]} 3. d4 {[%emt 0:00:05]} cxd4 {[%emt 0:00:02]} 4. Nxd4 {[%emt 0:00:04]} Nf6 {[%emt 0:00:02]} 5. Nc3 {[%emt 0:00:08]} a6 {[%emt 0:00:00]} 6. Bg5 {[%emt 0:01:58]} e6 {[%emt 0:00:05]} 7. f4 {[%emt 0:00:04]} Be7 {[%emt 0:00:05]} 8. Qf3 {[%emt 0:00:23]} Qc7 {[%emt 0:00:01]} 9. O-O-O {[%emt 0:00:31]} Nbd7 {[%emt 0:00:02]} 10. Bd3 {[%emt 0:00:42]} b5 {[%emt 0:00:14]} 11. Rhe1 {[%emt 0:01:06]} Bb7 {[%emt 0:08:11]} 12. Qg3 {[%emt 0:02:44]} O-O-O {[%emt 0:51:34]} 13. Bxf6 {[%emt 0:01:54]} Bxf6 {[%emt 0:07:06]} 14. Bxb5 {[%emt 0:00:52]} axb5 {[%emt 0:01:39]} 15. Ndxb5 {[%emt 0:00:06]} Bxc3 {[%emt 0:00:35]} 16. Nxc7 {[%emt 0:04:08]} Bxe1 {[%emt 0:00:07]} 17. Rxe1 {[%emt 0:00:25]} Kxc7 {[%emt 0:00:06]} 18. Qxg7 {[%emt 0:00:07]} f5 {[%emt 0:01:26]} 19. exf5 {[%emt 0:07:31]} exf5 {[%emt 0:00:09]} 20. Re7 {[%emt 0:01:42]} Rhe8 {[%emt 0:03:37]} 21. Qc3+ {[%emt 0:03:57]} Kb8 {[%emt 0:01:56]} 22. Qb4 {[%emt 0:02:09]} Nc5 {[%emt 0:01:33]} 23. Qb6 {[%emt 0:00:27]} Ka8 {[%emt 0:05:08]} 24. b4 {[%emt 0:01:56]} 1-0

[Event "New York Summer IM-C 2022"]
[Site "New York"]
[Date "2022.07.11"]
[Round "7.4"]
[White "Asavasaetakul, Chawit"]
[Black "Bortnyk, Mykola"]
[Result "0-1"]
[ECO "A47"]
[WhiteElo "1948"]
[BlackElo "2463"]
[Annotator "RC"]
[PlyCount "54"]
[EventDate "2022.07.08"]
[EventType "tourn"]
[EventCountry "USA"]
[SourceTitle "playchess.com"]
[Source "ChessBase"]
[SourceQuality "1"]
[TimeControl "5400+30"]

1. d4 {[%emt 0:01:58]} Nf6 {[%emt 0:00:28]} 2. Nf3 {[%emt 0:00:10]} e6 {[%emt 0:00:13]} 3. Bf4 {[%emt 0:00:19]} b6 {[%emt 0:00:25]} 4. e3 {[%emt 0:00:55]} Bb7 {[%emt 0:00:13]} 5. Nbd2 {[%emt 0:00:13]} Be7 {[%emt 0:00:36]} 6. h3 {[%emt 0:01:06]} c5 {[%emt 0:00:24]} 7. Nc4 {[%emt 0:02:00]} cxd4 {[%emt 0:01:24]} 8. exd4 {[%emt 0:00:35]} O-O {[%emt 0:00:09]} 9. Be2 {[%emt 0:01:04]} b5 {[%emt 0:01:39]} 10. Ncd2 {[%emt 0:03:34]} a6 {[%emt 0:00:31]} 11. O-O {[%emt 0:00:48]} d6 {[%emt 0:00:22]} 12. a4 {[%emt 0:03:42]} b4 {[%emt 0:00:20]} 13. Bh2 {[%emt 0:13:03]} Nc6 {[%emt 0:01:34]} 14. Bd3 {[%emt 0:04:35]} Re8 {[%emt 0:02:04]} 15. Re1 {[%emt 0:01:19]} Bf8 {[%emt 0:00:28]} 16. Ne4 {[%emt 0:01:19]} e5 {[%emt 0:04:07]} 17. dxe5 {[%emt 0:06:07]} dxe5 {[%emt 0:00:18]} 18. Qe2 {[%emt 0:04:52]} Nd5 {[%emt 0:13:02]} 19. Bc4 {[%emt 0:20:05]} f5 {[%emt 0:04:40]} 20. Ng3 {[%emt 0:06:48]} f4 {[%emt 0:08:34]} 21. Ne4 {[%emt 0:01:32]} Na5 {[%emt 0:00:27]} 22. Ba2 {[%emt 0:01:14]} Qb6 {[%emt 0:02:08]} 23. Rad1 {[%emt 0:03:28]} b3 {[%emt 0:00:14]} 24. cxb3 {[%emt 0:00:35]} Bb4 {[%emt 0:00:07]} 25. Rf1 {[%emt 0:01:37]} Ne3 {[%emt 0:01:57]} 26. Nfd2 {[%emt 0:07:50]} Nxd1 {[%emt 0:00:17]} 27. Nc4 {[%emt 0:00:34]} Qg6 {[%emt 0:00:31]} 0-1

[Event "New York Summer IM-C 2022"]
[Site "New York"]
[Date "2022.07.11"]
[Round "7.5"]
[White "Rozman, Levy"]
[Black "Poliannikov, Danila"]
[Result "1-0"]
[ECO "A34"]
[WhiteElo "2333"]
[BlackElo "2309"]
[Annotator "RC"]
[PlyCount "97"]
[EventDate "2022.07.08"]
[EventType "tourn"]
[EventCountry "USA"]
[SourceTitle "playchess.com"]
[Source "ChessBase"]
[SourceQuality "1"]
[TimeControl "5400+30"]

1. c4 {[%emt 0:00:03]} Nf6 {[%emt 0:00:06]} 2. Nc3 {[%emt 0:00:07]} c5 {[%emt 0:00:09]} 3. Nf3 {[%emt 0:00:07]} d5 {[%emt 0:00:03]} 4. cxd5 {[%emt 0:00:11]} Nxd5 {[%emt 0:00:01]} 5. e3 {[%emt 0:00:17]} Nc6 {[%emt 0:00:45]} 6. Bb5 {[%emt 0:00:32]} Ndb4 {[%emt 0:00:49]} 7. a3 {[%emt 0:06:07]} Nd3+ {[%emt 0:00:36]} 8. Ke2 {[%emt 0:00:11]} Bf5 {[%emt 0:17:42]} 9. e4 {[%emt 0:09:51]} Nf4+ {[%emt 0:14:45]} 10. Kf1 {[%emt 0:00:09]} Bd7 {[%emt 0:00:10]} 11. Bxc6 {[%emt 0:03:09]} Bxc6 {[%emt 0:05:57]} 12. d4 {[%emt 0:00:08]} cxd4 {[%emt 0:01:44]} 13. Qxd4 {[%emt 0:23:56]} Nd3 {[%emt 0:11:48]} 14. Ke2 {[%emt 0:03:50]} Nxc1+ {[%emt 0:26:24]} 15. Raxc1 {[%emt 0:00:07]} e6 {[%emt 0:00:46]} 16. Rhd1 {[%emt 0:01:27]} Qxd4 {[%emt 0:02:17]} 17. Nxd4 {[%emt 0:00:17]} Rc8 {[%emt 0:00:17]} 18. Kf3 {[%emt 0:17:30]} Bd7 {[%emt 0:05:48]} 19. Rd3 {[%emt 0:00:30]} Bc5 {[%emt 0:02:09]} 20. Rcd1 {[%emt 0:08:00]} Bxd4 {[%emt 0:00:33]} 21. Rxd4 {[%emt 0:00:03]} Bc6 {[%emt 0:00:06]} 22. b4 {[%emt 0:01:05]} Ke7 {[%emt 0:05:29]} 23. b5 {[%emt 0:00:59]} Be8 {[%emt 0:00:02]} 24. R1d3 {[%emt 0:00:11]} Rc7 {[%emt 0:00:24]} 25. a4 {[%emt 0:01:12]} Bd7 {[%emt 0:00:39]} 26. e5 {[%emt 0:03:23]} f6 {[%emt 0:01:12]} 27. Rg4 {[%emt 0:00:24]} g6 {[%emt 0:01:03]} 28. exf6+ {[%emt 0:04:40]} Kxf6 {[%emt 0:00:01]} 29. Rgd4 {[%emt 0:00:19]} Ke7 {[%emt 0:00:09]} 30. Ne4 {[%emt 0:01:24]} Rf8+ {[%emt 0:00:20]} 31. Ke3 {[%emt 0:00:09]} Rf5 {[%emt 0:01:33]} 32. g4 {[%emt 0:01:33]} Rd5 {[%emt 0:01:43]} 33. f4 {[%emt 0:01:51]} Rxd4 {[%emt 0:00:11]} 34. Kxd4 {[%emt 0:00:02]} e5+ {[%emt 0:00:40]} 35. Kxe5 {[%emt 0:05:40]} Bxg4 {[%emt 0:00:02]} 36. Rc3 {[%emt 0:00:37]} Rxc3 {[%emt 0:00:23]} 37. Nxc3 {[%emt 0:00:02]} Bf3 {[%emt 0:01:38]} 38. a5 {[%emt 0:03:16]} b6 {[%emt 0:00:10]} 39. axb6 {[%emt 0:00:17]} axb6 {[%emt 0:00:02]} 40. Nd5+ {[%emt 0:00:08]} Kf8 {[%emt 0:00:49]} 41. Kd6 {[%emt 0:00:18]} Be2 {[%emt 0:00:13]} 42. Nc3 {[%emt 0:00:46]} Bf1 {[%emt 0:00:17]} 43. Kc6 {[%emt 0:00:16]} Kg7 {[%emt 0:00:55]} 44. Kxb6 {[%emt 0:00:06]} Kh6 {[%emt 0:00:41]} 45. Ne4 {[%emt 0:02:25]} Bd3 {[%emt 0:00:26]} 46. Nf2 {[%emt 0:00:57]} Be2 {[%emt 0:00:38]} 47. Kc5 {[%emt 0:00:07]} g5 {[%emt 0:00:41]} 48. b6 {[%emt 0:00:48]} Bf3 {[%emt 0:00:03]} 49. Ng4+ {[%emt 0:00:33]} 1-0

[Event "New York Summer IM-C 2022"]
[Site "New York"]
[Date "2022.07.11"]
[Round "8.1"]
[White "Huston, Gus"]
[Black "Poliannikov, Danila"]
[Result "0-1"]
[ECO "C47"]
[WhiteElo "2282"]
[BlackElo "2309"]
[Annotator "ChessBase"]
[PlyCount "96"]
[EventDate "2022.07.08"]
[EventType "tourn"]
[EventCountry "USA"]
[SourceTitle "playchess.com"]
[Source "ChessBase"]
[SourceQuality "1"]
[TimeControl "5400+30"]

1. e4 {[%emt 0:00:01]} e5 {[%emt 0:00:03]} 2. Nf3 {[%emt 0:00:05]} Nc6 {[%emt 0:00:02]} 3. Nc3 {[%emt 0:00:39]} Nf6 {[%emt 0:00:05]} 4. d4 {[%emt 0:00:04]} exd4 {[%emt 0:00:02]} 5. Nxd4 {[%emt 0:00:07]} Bb4 {[%emt 0:00:03]} 6. Nxc6 {[%emt 0:00:07]} bxc6 {[%emt 0:00:02]} 7. Bd3 {[%emt 0:00:02]} d5 {[%emt 0:00:09]} 8. exd5 {[%emt 0:00:05]} O-O {[%emt 0:00:05]} 9. O-O {[%emt 0:00:05]} cxd5 {[%emt 0:00:02]} 10. h3 {[%emt 0:00:08]} c6 {[%emt 0:01:44]} 11. Qf3 {[%emt 0:00:06]} Rb8 {[%emt 0:02:42]} 12. Bf4 {[%emt 0:01:02]} Bd6 {[%emt 0:00:37]} 13. b3 {[%emt 0:00:08]} Re8 {[%emt 0:06:30]} 14. Rfe1 {[%emt 0:05:07]} Rxe1+ {[%emt 0:08:48]} 15. Rxe1 {[%emt 0:00:02]} Be6 {[%emt 0:00:18]} 16. Ne2 {[%emt 0:05:33]} c5 {[%emt 0:15:58]} 17. c3 {[%emt 0:09:35]} Qc7 {[%emt 0:07:27]} 18. Bc2 {[%emt 0:06:44]} Bxf4 {[%emt 0:13:51]} 19. Nxf4 {[%emt 0:00:35]} Qd6 {[%emt 0:00:16]} 20. Rd1 {[%emt 0:15:33]} Rd8 {[%emt 0:03:31]} 21. Qe3 {[%emt 0:07:14]} Re8 {[%emt 0:12:21]} 22. Qc1 {[%emt 0:11:18]} g6 {[%emt 0:03:13]} 23. Bd3 {[%emt 0:04:48]} Kg7 {[%emt 0:03:18]} 24. Bf1 {[%emt 0:01:59]} Qc7 {[%emt 0:06:08]} 25. g3 {[%emt 0:03:24]} h5 {[%emt 0:01:40]} 26. Bg2 {[%emt 0:00:45]} h4 {[%emt 0:01:15]} 27. g4 {[%emt 0:00:18]} Qe5 {[%emt 0:11:53]} 28. Re1 {[%emt 0:00:49]} Qd6 {[%emt 0:00:28]} 29. Qd2 {[%emt 0:11:17]} Rd8 {[%emt 0:00:04]} 30. b4 {[%emt 0:05:03]} cxb4 {[%emt 0:01:01]} 31. Qd4 {[%emt 0:01:17]} Qb6 {[%emt 0:00:50]} 32. Qe5 {[%emt 0:00:26]} Qd6 {[%emt 0:00:39]} 33. Nh5+ {[%emt 0:04:39]} gxh5 {[%emt 0:00:13]} 34. Qg5+ {[%emt 0:00:01]} Kh7 {[%emt 0:01:13]} 35. Qxf6 {[%emt 0:00:09]} bxc3 {[%emt 0:00:41]} 36. Bf1 {[%emt 0:04:02]} Kg8 {[%emt 0:00:45]} 37. Re5 {[%emt 0:00:53]} Bxg4 {[%emt 0:00:31]} 38. Re8+ {[%emt 0:01:10]} Rxe8 {[%emt 0:00:04]} 39. Qxd6 {[%emt 0:00:04]} c2 {[%emt 0:00:12]} 40. Qc6 {[%emt 0:01:08]} Rc8 {[%emt 0:00:16]} 41. Qxd5 {[%emt 0:01:11]} c1=Q {[%emt 0:00:06]} 42. hxg4 {[%emt 0:00:03]} hxg4 {[%emt 0:00:23]} 43. Qf5 {[%emt 0:01:03]} Rc6 {[%emt 0:00:34]} 44. Kg2 {[%emt 0:00:53]} h3+ {[%emt 0:00:23]} 45. Kh2 {[%emt 0:00:04]} Qxf1 {[%emt 0:00:35]} 46. Qg5+ {[%emt 0:00:14]} Rg6 {[%emt 0:00:08]} 47. Qd8+ {[%emt 0:00:17]} Kh7 {[%emt 0:00:04]} 48. Qh4+ {[%emt 0:00:08]} Kg7 {[%emt 0:00:03]} 0-1

[Event "New York Summer IM-C 2022"]
[Site "New York"]
[Date "2022.07.11"]
[Round "8.2"]
[White "Bortnyk, Mykola"]
[Black "Rozman, Levy"]
[Result "1-0"]
[ECO "E04"]
[WhiteElo "2463"]
[BlackElo "2333"]
[Annotator "ChessBase"]
[PlyCount "109"]
[EventDate "2022.07.08"]
[EventType "tourn"]
[EventCountry "USA"]
[SourceTitle "playchess.com"]
[Source "ChessBase"]
[SourceQuality "1"]
[TimeControl "5400+30"]

1. d4 {[%emt 0:05:23]} Nf6 {[%emt 0:00:43]} 2. Nf3 {[%emt 0:00:08]} d5 {[%emt 0:02:09]} 3. c4 {[%emt 0:00:16]} e6 {[%emt 0:00:22]} 4. g3 {[%emt 0:01:15]} dxc4 {[%emt 0:00:50]} 5. Bg2 {[%emt 0:00:22]} a6 {[%emt 0:00:24]} 6. a4 {[%emt 0:06:11]} Nc6 {[%emt 0:05:17]} 7. O-O {[%emt 0:03:39]} Rb8 {[%emt 0:01:11]} 8. Na3 {[%emt 0:03:16]} Bxa3 {[%emt 0:04:28]} 9. Rxa3 {[%emt 0:05:15]} O-O {[%emt 0:00:38]} 10. Bg5 {[%emt 0:01:13]} h6 {[%emt 0:01:25]} 11. Bh4 {[%emt 0:00:30]} b5 {[%emt 0:09:59]} 12. e4 {[%emt 0:08:28]} b4 {[%emt 1:09:04]} 13. Re3 {[%emt 0:00:13]} g5 {[%emt 0:00:00]} 14. Nxg5 {[%emt 0:00:07]} Qxd4 {[%emt 0:00:00]} 15. Qxd4 {[%emt 0:09:28]} Nxd4 {[%emt 0:00:00]} 16. Nf3 {[%emt 0:00:03]} Nxf3+ {[%emt 0:00:00]} 17. Bxf3 {[%emt 0:00:04]} Kg7 {[%emt 0:00:00]} 18. e5 {[%emt 0:10:29]} Nd7 {[%emt 0:00:00]} 19. Be2 {[%emt 0:02:04]} c3 {[%emt 0:00:00]} 20. bxc3 {[%emt 0:00:06]} b3 {[%emt 0:00:00]} 21. Rb1 {[%emt 0:00:07]} Bb7 {[%emt 0:00:00]} 22. Rxb3 {[%emt 0:02:40]} Bc6 {[%emt 0:00:00]} 23. Rb4 {[%emt 0:05:37]} Rxb4 {[%emt 0:00:00]} 24. cxb4 {[%emt 0:00:02]} Bxa4 {[%emt 0:00:00]} 25. Bxa6 {[%emt 0:36:04]} Rb8 {[%emt 0:00:00]} 26. Be7 {[%emt 0:00:00]} Re8 {[%emt 0:00:00]} 27. Bc5 {[%emt 0:00:00]} Ra8 {[%emt 0:00:00]} 28. Bf1 {[%emt 0:00:00]} Nxc5 {[%emt 0:00:14]} 29. bxc5 {[%emt 0:00:00]} Bc6 {[%emt 0:02:15]} 30. Re1 {[%emt 0:00:00]} Ra2 {[%emt 0:00:33]} 31. Rc1 {[%emt 0:00:00]} Rd2 {[%emt 0:00:57]} 32. h3 {[%emt 0:00:00]} Kg6 {[%emt 0:00:33]} 33. g4 {[%emt 0:00:00]} Kg7 {[%emt 0:00:51]} 34. f4 {[%emt 0:00:00]} Kg6 {[%emt 0:03:47]} 35. Ra1 {[%emt 0:00:00]} Bd5 {[%emt 0:00:35]} 36. Ra3 {[%emt 0:00:00]} Rd4 {[%emt 0:00:29]} 37. Bd3+ {[%emt 0:00:00]} Be4 {[%emt 0:00:20]} 38. Bxe4+ {[%emt 0:00:00]} Rxe4 {[%emt 0:00:05]} 39. Ra7 {[%emt 0:00:00]} Rxf4 {[%emt 0:00:46]} 40. Rxc7 {[%emt 0:00:00]} Re4 {[%emt 0:00:11]} 41. c6 {[%emt 0:00:00]} Rxe5 {[%emt 0:00:04]} 42. Rc8 {[%emt 0:00:00]} Rc5 {[%emt 0:00:34]} 43. h4 {[%emt 0:00:00]} Kf6 {[%emt 0:02:14]} 44. Kf2 {[%emt 0:00:00]} Rc4 {[%emt 0:00:51]} 45. Kf3 {[%emt 0:00:00]} Kg7 {[%emt 0:00:28]} 46. Ke3 {[%emt 0:00:06]} f5 {[%emt 0:00:41]} 47. Kd3 {[%emt 0:00:18]} Rc1 {[%emt 0:00:12]} 48. Rc7+ {[%emt 0:01:42]} Kf6 {[%emt 0:00:43]} 49. g5+ {[%emt 0:02:08]} Kg6 {[%emt 0:00:32]} 50. gxh6 {[%emt 0:00:29]} Kxh6 {[%emt 0:00:05]} 51. Kd4 {[%emt 0:00:18]} Kh5 {[%emt 0:00:17]} 52. Rc8 {[%emt 0:00:04]} Kg4 {[%emt 0:01:09]} 53. h5 {[%emt 0:00:06]} Kg5 {[%emt 0:00:33]} 54. c7 {[%emt 0:00:13]} Kf4 {[%emt 0:00:27]} 55. h6 {[%emt 0:00:06]} 1-0

[Event "New York Summer IM-C 2022"]
[Site "New York"]
[Date "2022.07.11"]
[Round "8.3"]
[White "Le, Nguyen Khoi Nguyen"]
[Black "Asavasaetakul, Chawit"]
[Result "0-1"]
[ECO "B12"]
[WhiteElo "2001"]
[BlackElo "1948"]
[Annotator "ChessBase"]
[PlyCount "108"]
[EventDate "2022.07.08"]
[EventType "tourn"]
[EventCountry "USA"]
[SourceTitle "playchess.com"]
[Source "ChessBase"]
[SourceQuality "1"]
[TimeControl "5400+30"]

1. e4 {[%emt 0:13:48]} c6 {[%emt 0:00:06]} 2. d4 {[%emt 0:00:02]} d5 {[%emt 0:00:05]} 3. e5 {[%emt 0:00:01]} g6 {[%emt 0:00:11]} 4. Nf3 {[%emt 0:00:35]} h5 {[%emt 0:01:17]} 5. c4 {[%emt 0:06:46]} Bg4 {[%emt 0:03:37]} 6. h3 {[%emt 0:01:52]} Bxf3 {[%emt 0:00:12]} 7. Qxf3 {[%emt 0:00:02]} e6 {[%emt 0:01:02]} 8. a3 {[%emt 0:10:54]} dxc4 {[%emt 0:02:48]} 9. Be3 {[%emt 0:00:41]} b5 {[%emt 0:04:32]} 10. Nc3 {[%emt 0:01:03]} Qa5 {[%emt 0:02:01]} 11. Bd2 {[%emt 0:04:26]} Qb6 {[%emt 0:07:45]} 12. Ne4 {[%emt 0:01:57]} a5 {[%emt 0:11:50]} 13. Be2 {[%emt 0:05:14]} Nd7 {[%emt 0:06:03]} 14. O-O {[%emt 0:03:29]} Qxd4 {[%emt 0:17:20]} 15. Bc3 {[%emt 0:04:26]} Qb6 {[%emt 0:00:07]} 16. Rfd1 {[%emt 0:02:40]} Nh6 {[%emt 0:01:31]} 17. Qf6 {[%emt 0:17:29]} Rg8 {[%emt 0:05:58]} 18. Qg5 {[%emt 0:00:22]} Nf5 {[%emt 0:06:30]} 19. Qd2 {[%emt 0:06:49]} Ra7 {[%emt 0:03:54]} 20. Qxd7+ {[%emt 0:01:42]} Rxd7 {[%emt 0:00:15]} 21. Nf6+ {[%emt 0:00:02]} Kd8 {[%emt 0:00:19]} 22. Nxd7 {[%emt 0:00:28]} Qc7 {[%emt 0:01:52]} 23. Nf6+ {[%emt 0:02:45]} Kc8 {[%emt 0:00:07]} 24. Nxg8 {[%emt 0:00:07]} Bc5 {[%emt 0:01:23]} 25. Nf6 {[%emt 0:10:33]} Bxf2+ {[%emt 0:01:07]} 26. Kxf2 {[%emt 0:00:02]} Qb6+ {[%emt 0:00:05]} 27. Ke1 {[%emt 0:00:26]} Qg1+ {[%emt 0:00:29]} 28. Kd2 {[%emt 0:00:16]} Qe3+ {[%emt 0:00:07]} 29. Kc2 {[%emt 0:00:58]} Qxe2+ {[%emt 0:00:09]} 30. Rd2 {[%emt 0:00:01]} Qe3 {[%emt 0:06:55]} 31. Rad1 {[%emt 0:00:17]} b4 {[%emt 0:00:46]} 32. axb4 {[%emt 0:02:01]} axb4 {[%emt 0:00:14]} 33. Rd8+ {[%emt 0:01:37]} Kb7 {[%emt 0:00:23]} 34. R1d7+ {[%emt 0:00:04]} Kb6 {[%emt 0:01:24]} 35. Rb8+ {[%emt 0:00:08]} Ka6 {[%emt 0:00:05]} 36. Rxb4 {[%emt 0:00:16]} Qg1 {[%emt 0:03:33]} 37. Bd2 {[%emt 0:03:47]} Nd4+ {[%emt 0:02:38]} 38. Kc3 {[%emt 0:00:01]} Nb5+ {[%emt 0:02:48]} 39. Kxc4 {[%emt 0:00:07]} Qd1 {[%emt 0:01:07]} 40. Kd3 {[%emt 0:01:15]} c5 {[%emt 0:00:53]} 41. Rf4 {[%emt 0:00:50]} Nd4 {[%emt 0:01:11]} 42. Rfxd4 {[%emt 0:00:35]} cxd4 {[%emt 0:00:13]} 43. Rxd4 {[%emt 0:00:13]} Qf1+ {[%emt 0:00:37]} 44. Kc2 {[%emt 0:00:32]} Qxg2 {[%emt 0:00:18]} 45. h4 {[%emt 0:00:22]} Qf2 {[%emt 0:00:56]} 46. Re4 {[%emt 0:00:44]} g5 {[%emt 0:01:06]} 47. hxg5 {[%emt 0:00:26]} h4 {[%emt 0:00:18]} 48. Rf4 {[%emt 0:00:29]} Qc5+ {[%emt 0:00:21]} 49. Bc3 {[%emt 0:00:07]} h3 {[%emt 0:01:00]} 50. Nd7 {[%emt 0:01:07]} Qg1 {[%emt 0:00:48]} 51. Rb4 {[%emt 0:00:10]} Qg2+ {[%emt 0:01:00]} 52. Kb1 {[%emt 0:00:48]} h2 {[%emt 0:00:47]} 53. Nb8+ {[%emt 0:00:34]} Ka7 {[%emt 0:00:23]} 54. Bd4+ {[%emt 0:00:28]} Ka8 {[%emt 0:00:10]} 0-1